bitfinex/quotes_ETHUSD_20250322
["timestamp","ask_amount","ask_price","bid_price","bid_amount"]
[1742644778548,3.61498777,1992.8,1992.6,0.28652211]
[1742644781536,8.63309777,1992.8,1992.6,0.28652211]
[1742644781732,3.61498777,1992.8,1992.6,0.28652211]
[1742644782046,5.30373161,1992.8,1992.6,0.28652211]
[1742644784549,10.32183161,1992.8,1992.6,0.28652211]
[1742644784845,5.30373161,1992.8,1992.6,0.28652211]
[1742644785051,8.01822,1992.8,1992.6,0.28652211]
[1742644789755,3.7602,1992.7,1992.6,0.28652211]
[1742644789925,9.956352,1992.7,1992.6,0.28652211]
[1742644791451,5.80372,1992.9,1992.6,0.28652211]
[1742644791651,10.82168,1992.9,1992.6,0.28652211]
[1742644791858,5.80372,1992.9,1992.6,0.28652211]
[1742644792155,5.80372,1992.9,1992.6,4.93252211]
[1742644792526,5.01792,1992.9,1992.6,4.93252211]
[1742644794360,10.03591,1992.9,1992.6,4.93252211]
[1742644794860,5.01792,1992.9,1992.6,4.93252211]
[1742644795728,5.01734,1993.1,1992.7,5.77697]
[1742644795933,3.0,1993.0,1992.8,0.28570369]
[1742644796730,8.01758,1993.0,1992.8,0.28570369]
[1742644799071,5.08053361,1992.9,1992.8,0.28570369]
[1742644799280,5.01781,1992.9,1992.8,0.28570369]
[1742644799475,8.01807,1992.8,1992.6,31.178]
[1742644800345,5.08104051,1992.7,1992.6,31.178]
[1742644801747,8.08104051,1992.7,1992.6,31.178]
[1742644802347,8.01831,1992.7,1992.6,31.178]
[1742644802677,5.01874,1992.6,1992.3,26.531]
[1742644802878,8.0189,1992.5,1992.3,26.531]
[1742644803181,8.0189,1992.5,1992.4,4.646]
[1742644803546,8.0189,1992.5,1992.3,31.177]
[1742644803746,8.01907,1992.4,1992.3,31.177]
[1742644805984,3.0,1992.4,1992.3,31.177]
[1742644806281,8.01907,1992.4,1992.3,31.177]
[1742644812181,8.01907,1992.4,1992.3,4.646]
[1742644814800,8.01907,1992.4,1992.2,0.7588]
[1742644815001,8.01907,1992.4,1992.3,4.646]
[1742644817472,8.01907,1992.4,1992.3,4.93436851]
[1742644828803,5.01835,1992.7,1992.4,0.821]
[1742644829011,5.0186,1992.6,1992.4,0.821]
[1742644829218,5.01809,1992.8,1992.5,0.28739059]
[1742644829521,5.01841,1992.7,1992.5,0.28739059]
[1742644829721,5.01841,1992.7,1992.5,0.90012265]
[1742644830220,10.03592,1992.9,1992.6,0.821]
[1742644830422,8.01772,1993.0,1992.7,4.93246186]
[1742644830615,3.0,1992.9,1992.7,4.93246186]
[1742644830807,8.01785,1992.9,1992.7,4.93246186]
[1742644833526,13.03585,1992.9,1992.7,4.93246186]
[1742644833819,8.01785,1992.9,1992.7,4.93246186]
[1742644835547,3.0,1993.2,1992.8,5.83904]
[1742644835692,8.0171,1993.2,1992.8,5.83904]
[1742644835894,8.0171,1993.2,1992.9,0.28501905]
[1742644836327,8.0171,1993.2,1992.8,5.83887]
[1742644836627,8.0171,1993.2,1992.9,0.583887]
[1742644837200,13.03436,1993.2,1993.0,0.28455485]
[1742644837395,8.0171,1993.2,1993.1,4.645]
[1742644837597,8.0171,1993.2,1993.1,4.92909069]
[1742644841226,8.01705,1993.2,1993.1,5.71969069]
[1742644841419,8.01705,1993.2,1993.1,6.29165976]
[1742644842333,8.01705,1993.2,1993.1,5.50105976]
[1742644846136,8.01705,1993.2,1993.1,4.92909069]
[1742644849550,5.01705,1993.2,1993.1,4.92909069]
[1742644865663,5.76975,1993.2,1993.1,4.92909069]
[1742644865831,5.76975,1993.2,1993.1,0.28409069]
[1742644865832,8.83246493,1993.2,1993.1,0.28409069]
[1742644866036,5.0173,1993.1,1993.0,4.644]
[1742644866262,5.01806,1992.8,1992.7,26.526]
[1742644866464,8.01806,1992.8,1992.7,26.526]
[1742644866657,8.08079052,1992.8,1992.7,31.17]
[1742644868765,8.08079052,1992.8,1992.3,0.7731]
[1742644868968,5.01907,1992.4,1992.1,27.3248]
[1742644869158,5.01907,1992.4,1992.2,4.643]
[1742644869582,10.03833,1992.4,1992.2,4.643]
[1742644869758,5.01907,1992.4,1992.3,0.28727884]
[1742644871065,5.01884,1992.5,1992.3,0.28727884]
[1742644872437,5.01884,1992.5,1992.3,0.78030672]
[1742644873393,5.01884,1992.5,1992.3,0.28727884]
[1742644873691,5.01892,1992.5,1992.3,0.28727884]
[1742644876079,10.03797,1992.5,1992.3,0.28727884]
[1742644876376,5.01907,1992.4,1992.3,0.28727884]
[1742644881664,8.01887,1992.5,1992.3,0.28727884]
[1742644881869,13.03789,1992.5,1992.3,0.28727884]
[1742644882163,8.01887,1992.5,1992.3,0.28727884]
[1742644883084,3.0,1992.5,1992.3,0.28727884]
[1742644883290,8.01891,1992.5,1992.3,0.28727884]
[1742644883781,3.0,1992.5,1992.3,0.28727884]
[1742644884991,8.01891,1992.5,1992.3,0.28727884]
[1742644885793,13.03796,1992.5,1992.3,0.28727884]
[1742644885968,5.01907,1992.4,1992.3,0.28727884]
[1742644886657,10.16540623,1992.4,1992.3,7.21e-06]
[1742644886857,5.02127,1991.6,1991.4,4.669]
[1742644887071,5.02127,1991.6,1991.5,0.22221716]
[1742644888291,5.02061,1991.8,1991.5,0.22221716]
[1742644888502,3.7798,1992.0,1991.5,0.22221716]
[1742644888799,9.680083,1992.0,1991.5,0.22221716]
[1742644889197,5.02108,1991.6,1991.5,0.22221716]
[1742644891564,5.02108,1991.6,1991.5,4.88921716]
[1742644891768,8.02108,1991.6,1991.5,4.88921716]
[1742644892269,8.02108,1991.6,1991.5,0.22221716]
[1742644892479,8.02108,1991.6,1991.5,4.671]
[1742644892680,8.02108,1991.6,1991.5,4.8586485]
[1742644898808,3.0,1991.6,1991.5,4.8586485]
[1742644900002,10.04187,1991.7,1991.5,4.8586485]
[1742644901478,5.78608,1991.6,1991.5,0.1876485]
[1742644901677,5.02134,1991.5,1991.3,31.216]
[1742644901909,5.02134,1991.5,1991.4,0.06381699]
[1742644902074,5.02134,1991.5,1991.4,0.16371532]
[1742644903308,8.0841122,1991.5,1991.4,0.16371532]
[1742644903507,10.09686822,1991.5,1991.4,0.16371532]
[1742644905512,5.02184,1991.3,1991.2,4.674]
[1742644905809,5.02184,1991.3,1991.2,4.83865744]
[1742644906004,8.02184,1991.3,1991.2,4.83865744]
[1742644906188,5.02184,1991.3,1991.2,4.83865744]
[1742644906383,8.02167,1991.4,1991.2,5.64245744]
[1742644906600,3.0,1991.4,1991.2,5.64245744]
[1742644906984,3.0,1991.6,1991.2,5.64245744]
[1742644907313,5.02118,1991.6,1991.2,11.22866318]
[1742644907689,5.02134,1991.5,1991.2,6.20670318]
[1742644908212,5.02159,1991.4,1991.2,5.64245744]
[1742644908390,5.02159,1991.4,1991.2,0.16465744]
[1742644908589,5.02159,1991.4,1991.3,4.679]
[1742644908795,8.02159,1991.4,1991.3,4.679]
[1742644909001,8.02159,1991.4,1991.3,4.8433873]
[1742644909193,9.402391,1991.4,1991.3,0.1643873]
[1742644909381,10.167391,1991.4,1991.3,0.1643873]
[1742644909580,3.0,1991.2,1990.8,32.537]
[1742644909781,8.02234,1991.1,1991.0,4.686]
[1742644911124,5.02278,1991.0,1990.8,26.547]
[1742644911330,5.02285,1990.9,1990.8,31.233]
[1742644913210,5.02272,1991.0,1990.8,31.40100393]
[1742644913510,5.02285,1990.9,1990.8,31.40100393]
[1742644915635,5.02272,1991.0,1990.8,31.40100393]
[1742644915636,3.0,1991.0,1990.8,31.40100393]
[1742644915802,8.02275,1991.0,1990.8,31.40100393]
[1742644915998,5.02285,1990.9,1990.8,31.40100393]
[1742644917625,8.02275,1991.0,1990.8,32.21140393]
[1742644918344,5.02285,1990.9,1990.8,32.21140393]
[1742644918831,5.02285,1990.9,1990.8,31.40100393]
[1742644924546,5.02285,1990.9,1990.8,4.85400393]
[1742644925018,5.02285,1990.9,1990.8,4.84400393]
[1742644925217,5.02285,1990.9,1990.8,0.16800393]
[1742644925218,10.09791,1990.9,1990.8,0.16800393]
[1742644925650,5.02417,1990.4,1990.2,0.8104]
[1742644925955,5.02417,1990.4,1990.3,0.15696405]
[1742644926456,8.02362,1990.6,1990.3,0.96736405]
[1742644926758,5.02315,1990.8,1990.4,5.02402]
[1742644927061,5.02315,1990.8,1990.5,0.15650593]
[1742644927361,5.02315,1990.8,1990.6,4.688]
[1742644927739,5.02315,1990.8,1990.7,0.15557533]
[1742644928139,5.02315,1990.8,1990.6,4.688]
[1742644928350,5.02315,1990.8,1990.7,0.15557533]
[1742644928759,5.02315,1990.8,1990.6,4.688]
[1742644928947,5.02315,1990.8,1990.7,0.15557533]
[1742644929144,8.0229,1990.9,1990.7,0.15557533]
[1742644929351,8.0229,1990.9,1990.6,5.5203]
[1742644929549,8.0229,1990.9,1990.8,0.1551101]
[1742644929752,8.0229,1990.9,1990.7,0.15557533]
[1742644929948,8.0229,1990.9,1990.8,0.1551101]
[1742644930340,8.0229,1990.9,1990.6,5.5203]
[1742644930630,8.0229,1990.9,1990.7,0.15557533]
[1742644930853,8.0229,1990.9,1990.6,5.5203]
[1742644931162,8.0229,1990.9,1990.7,0.15557533]
[1742644931663,8.0229,1990.9,1990.8,0.1551101]
[1742644931862,3.0,1990.9,1990.7,5.02333]
[1742644932213,8.0226,1991.0,1990.8,0.1551101]
[1742644932665,8.0226,1991.0,1990.6,15.56725]
[1742644932871,8.0226,1991.0,1990.7,0.15557533]
[1742644933779,8.0226,1991.0,1990.8,4.686]
[1742644934071,8.0226,1991.0,1990.9,0.15464492]
[1742644935377,3.0,1991.0,1990.9,0.15464492]
[1742644940184,8.0219,1991.3,1990.9,6.00967492]
[1742644940977,8.0219,1991.3,1991.0,5.02259]
[1742644941383,8.0219,1991.3,1991.1,0.15370254]
[1742644941583,3.0,1991.3,1991.2,4.685]
[1742644941781,3.0,1991.4,1991.2,4.685]
[1742644941958,3.0,1991.4,1991.2,5.6705375]
[1742644942165,5.0208,1991.8,1991.4,5.02147]
[1742644942363,10.04157,1991.8,1991.4,5.02147]
[1742644942564,3.0,1991.7,1991.5,0.15146704]
[1742644942752,8.02083,1991.7,1991.6,4.699]
[1742644943155,8.02083,1991.7,1991.6,4.85000218]
[1742644943353,5.02083,1991.7,1991.6,4.85000218]
[1742644943656,8.02083,1991.7,1991.6,4.85000218]
[1742644944586,3.0,1991.7,1991.6,4.85000218]
[1742644945162,8.02083,1991.7,1991.6,4.85000218]
[1742644947205,3.0,1991.7,1991.6,4.85000218]
[1742644948487,0.8129,1992.0,1991.6,5.9169534]
[1742644948688,5.02017,1992.0,1991.6,10.9378834]
[1742644948989,5.02017,1992.0,1991.6,15.9587734]
[1742644949191,5.02017,1992.0,1991.6,10.9378434]
[1742644949791,5.02017,1992.0,1991.6,15.9587534]
[1742644949992,5.02017,1992.0,1991.6,10.9378434]
[1742644951996,10.04045,1992.0,1991.6,10.9378434]
[1742644952697,5.02017,1992.0,1991.6,10.9378434]
[1742644952884,5.02017,1992.0,1991.7,6.11460434]
[1742644953079,3.0,1992.0,1991.8,5.02057]
[1742644953294,5.01985,1992.1,1991.9,0.7982]
[1742644953490,5.01985,1992.1,1992.0,4.688]
[1742644953794,5.01985,1992.1,1992.0,4.83590751]
[1742644953983,8.01985,1992.1,1992.0,4.83590751]
[1742644956888,3.0,1992.1,1992.0,4.83590751]
[1742644957690,5.0194,1992.3,1992.0,5.31949826]
[1742644957888,5.0194,1992.3,1992.1,0.7982]
[1742644958085,8.01912,1992.4,1992.1,0.7982]
[1742644958291,5.01918,1992.4,1992.2,0.14619123]
[1742644958488,5.01894,1992.5,1992.2,0.14619123]
[1742644958688,5.01861,1992.6,1992.2,5.61583012]
[1742644958893,5.01861,1992.6,1992.3,0.1457267]
[1742644959093,3.0,1992.5,1992.4,5.4782]
[1742644959706,3.0,1992.5,1992.4,5.62325641]
[1742644960207,5.01842,1992.7,1992.4,5.62325641]
[1742644960500,3.0,1992.6,1992.4,5.62325641]
[1742644960701,3.0,1992.6,1992.4,7.99328176]
[1742644961304,8.01861,1992.6,1992.4,7.99328176]
[1742644961999,3.0,1992.6,1992.4,7.99328176]
[1742644963271,8.01866,1992.6,1992.4,7.99328176]
[1742644963480,8.01866,1992.6,1992.4,7.20908176]
[1742644963685,8.01866,1992.6,1992.4,0.14505641]
[1742644963887,5.84992,1992.5,1992.4,0.14505641]
[1742644964096,5.01907,1992.4,1992.3,26.545]
[1742644964908,5.01907,1992.4,1992.3,31.238]
[1742644967522,10.86899,1992.5,1992.3,31.238]
[1742644967815,5.01888,1992.5,1992.3,31.38327881]
[1742644968022,5.01888,1992.5,1992.3,34.52160669]
[1742644969424,5.01907,1992.4,1992.3,34.52160669]
[1742644970527,5.01907,1992.4,1992.3,31.38327881]
[1742644970821,5.85017,1992.4,1992.3,31.38327881]
[1742644972125,5.85017,1992.4,1992.3,26.69027881]
[1742644972328,5.85017,1992.4,1992.3,31.39227881]
[1742644976123,8.01868,1992.6,1992.3,31.39227881]
[1742644976428,3.0,1992.6,1992.3,36.41143881]
[1742644976627,8.01858,1992.6,1992.3,31.39227881]
[1742644979941,13.03735,1992.6,1992.3,31.39227881]
[1742644980835,8.01858,1992.6,1992.3,31.39227881]
[1742644981804,3.0,1992.7,1992.4,5.01901]
[1742644981999,3.0,1992.7,1992.5,1.41323039]
[1742644982400,1.93609113,1992.7,1992.5,1.41323039]
[1742644984430,5.84102,1992.9,1992.5,1.41323039]
[1742644984634,5.01782,1992.9,1992.5,6.43192039]
[1742644985404,5.01782,1992.9,1992.5,11.45060039]
[1742644985705,5.01782,1992.9,1992.6,1.14506004]
[1742644985929,5.01782,1992.9,1992.7,4.694]
[1742644986336,8.01782,1992.9,1992.8,0.14243636]
[1742644987818,3.0,1992.9,1992.8,0.14243636]
[1742644988019,10.03493,1993.1,1992.8,0.90993636]
[1742644988339,5.01737,1993.1,1992.8,0.90993636]
[1742644988634,5.01737,1993.1,1992.8,6.990197]
[1742644989532,5.01737,1993.1,1992.8,1.972157]
[1742644989748,5.01767,1993.0,1992.8,1.972157]
[1742644989935,5.01781,1992.9,1992.8,0.14243636]
[1742645000050,5.0176,1993.0,1992.8,0.14243636]
[1742645000423,5.01781,1992.9,1992.8,0.14243636]
[1742645001359,5.0176,1993.0,1992.8,0.14243636]
[1742645002956,8.7798,1993.2,1992.8,5.16049636]
[1742645002957,5.01732,1993.1,1992.8,5.16049636]
[1742645003164,5.01732,1993.1,1992.8,1.629704]
[1742645003727,5.01732,1993.1,1992.9,0.7684]
[1742645004164,5.01732,1993.1,1993.0,0.14026165]
[1742645004363,8.01709,1993.2,1993.0,0.14026165]
[1742645004746,13.03435,1993.2,1993.0,0.14026165]
[1742645005864,13.03435,1993.2,1993.1,4.684]
[1742645006238,13.03435,1993.2,1993.1,4.82377333]
[1742645011368,14.337785,1993.2,1993.1,4.82377333]
[1742645011541,15.129385,1993.2,1993.1,4.82377333]
[1742645013249,13.82595,1993.2,1993.1,4.82377333]
[1742645016878,13.82595,1993.2,1993.1,0.13977333]
[1742645017079,5.01756,1993.0,1992.9,4.675]
[1742645019675,5.0174,1993.1,1992.9,4.675]
[1742645020179,8.01706,1993.2,1992.9,5.4262]
[1742645020180,8.01707,1993.2,1992.9,5.4262]
[1742645020379,3.0,1993.2,1992.9,11.488321]
[1742645020677,3.0,1993.2,1993.0,0.14015281]
[1742645021059,8.01707,1993.2,1993.0,0.14015281]
[1742645022179,5.01683,1993.3,1993.0,0.14015281]
[1742645023350,10.03383,1993.3,1993.0,0.14015281]
[1742645023547,5.01683,1993.3,1993.0,1.30299519]
[1742645024480,0.7551,1993.6,1993.1,0.7512]
[1742645024680,3.0,1993.5,1993.2,5.0168]
[1742645024979,3.0,1993.5,1993.3,4.672]
[1742645025185,8.0164,1993.5,1993.3,4.672]
[1742645025355,8.0164,1993.5,1993.4,0.13778847]
[1742645040403,9.45788265,1993.5,1993.4,4.79978847]
[1742645040607,9.45788265,1993.5,1993.4,4.662]
[1742645040795,9.395176,1993.5,1993.4,4.79949822]
[1742645041410,8.0164,1993.5,1993.4,4.79949822]
[1742645045912,8.07911001,1993.5,1993.4,4.79949822]
[1742645046590,8.0164,1993.5,1993.4,4.79949822]
[1742645047528,14.17911033,1993.5,1993.4,4.79949822]
[1742645047728,14.9098,1993.5,1993.4,4.79949822]
[1742645047881,16.902406,1993.5,1993.4,4.79949822]
[1742645052486,16.109006,1993.5,1993.4,4.79949822]
[1742645056725,16.908006,1993.5,1993.4,4.79949822]
[1742645063411,14.1164,1993.5,1993.4,4.79949822]
[1742645065132,8.0164,1993.5,1993.4,4.79949822]
[1742645065931,8.07910813,1993.5,1993.4,4.79949822]
[1742645066730,7.5164,1993.5,1993.4,4.79949822]
[1742645068723,8.39580811,1993.5,1993.4,4.79949822]
[1742645068920,10.34701492,1993.5,1993.4,4.79949822]
[1742645069107,10.28430681,1993.5,1993.4,4.79949822]
[1742645069732,8.3331,1993.5,1993.4,4.79949822]
[1742645069936,7.5164,1993.5,1993.4,4.79949822]
[1742645070303,7.0164,1993.5,1993.4,4.79949822]
[1742645070726,7.07910966,1993.5,1993.4,4.79949822]
[1742645071115,7.0164,1993.5,1993.4,4.79949822]
[1742645071302,7.07910993,1993.5,1993.4,4.79949822]
[1742645071935,7.0164,1993.5,1993.4,4.79949822]
[1742645086645,6.5164,1993.5,1993.4,4.79949822]
[1742645086841,5.0164,1993.5,1993.4,4.79949822]
[1742645088422,8.0164,1993.5,1993.4,4.79949822]
[1742645088621,5.0164,1993.5,1993.4,5.36065804]
[1742645089049,5.01626,1993.6,1993.4,5.36065804]
[1742645089050,10.03256,1993.6,1993.4,5.36065804]
[1742645089456,5.0163,1993.5,1993.4,5.36065804]
[1742645093036,8.01613,1993.6,1993.4,5.36065804]
[1742645093235,13.03236,1993.6,1993.4,5.36065804]
[1742645093453,8.01613,1993.6,1993.4,5.36065804]
[1742645093658,5.0163,1993.5,1993.4,4.79949822]
[1742645094259,8.01611,1993.6,1993.4,4.79949822]
[1742645094561,5.01611,1993.6,1993.4,4.79949822]
[1742645094727,10.03235,1993.6,1993.4,4.79949822]
[1742645096269,5.01389,1994.5,1994.0,0.7972]
[1742645096470,0.7944,1994.9,1994.2,0.7972]
[1742645096670,5.01366,1994.6,1994.3,4.80359881]
[1742645097180,5.0133,1994.7,1994.3,10.87941269]
[1742645097538,5.0133,1994.7,1994.3,10.87937269]
[1742645097736,5.01354,1994.6,1994.3,5.86513269]
[1742645098166,5.0133,1994.7,1994.3,10.87940269]
[1742645098373,5.0133,1994.7,1994.4,0.7972]
[1742645098567,5.0133,1994.7,1994.4,2.09699552]
[1742645099472,5.01365,1994.6,1994.4,2.09699552]
[1742645099853,5.01365,1994.6,1994.4,0.92933525]
[1742645100977,10.02681,1994.7,1994.4,0.92933525]
[1742645101281,5.01306,1994.8,1994.4,5.94333525]
[1742645102071,10.02632,1994.8,1994.4,5.94333525]
[1742645102278,5.01306,1994.8,1994.4,5.94333525]
[1742645102574,5.01313,1994.8,1994.5,0.59433352]
[1742645102777,5.01313,1994.8,1994.5,0.72600527]
[1742645105472,5.01331,1994.7,1994.5,0.72600527]
[1742645105681,5.01328,1994.7,1994.5,0.72600527]
[1742645106198,5.01328,1994.7,1994.5,27.23700527]
[1742645106384,5.01328,1994.7,1994.6,2.72370053]
[1742645106550,5.01328,1994.7,1994.6,2.85490882]
[1742645107250,5.01328,1994.7,1994.6,0.13120829]
[1742645107654,5.0759476,1994.7,1994.6,0.13120829]
[1742645107854,5.01328,1994.7,1994.6,0.13120829]
[1742645114798,8.01328,1994.7,1994.6,0.13120829]
[1742645116261,8.07595291,1994.7,1994.6,0.13120829]
[1742645116465,10.0743012,1994.7,1994.6,0.13120829]
[1742645117296,8.01328,1994.7,1994.6,0.13120829]
[1742645127077,8.89705065,1994.7,1994.6,0.13120829]
[1742645128210,8.89705065,1994.7,1994.4,0.46984072]
[1742645128211,5.01378,1994.5,1994.4,0.46984072]
[1742645128511,5.01403,1994.4,1994.3,31.164]
[1742645128807,5.01403,1994.4,1994.3,26.508]
[1742645129208,5.01403,1994.4,1994.3,31.163]
[1742645129809,5.83513,1994.4,1994.3,31.163]
[1742645129977,9.920021,1994.4,1994.3,26.508]
[1742645130178,5.01454,1994.2,1994.1,4.657]
[1742645130382,5.01454,1994.2,1993.8,1.75508046]
[1742645130383,5.01506,1994.0,1993.9,4.657]
[1742645131785,5.01506,1994.0,1993.9,4.9796727]
[1742645135323,5.01506,1994.0,1993.9,4.9766727]
[1742645143214,5.01453,1994.3,1994.0,0.8015]
[1742645143737,16.1283,1994.4,1994.1,0.32243444]
[1742645143927,6.1,1994.4,1994.2,0.8015]
[1742645144225,5.0138,1994.5,1994.3,4.975487]
[1742645145129,5.0138,1994.5,1994.3,31.487487]
[1742645145326,5.0138,1994.5,1994.3,35.05369047]
[1742645145708,5.01361,1994.6,1994.3,35.05369047]
[1742645146246,5.01361,1994.6,1994.4,0.8015]
[1742645146400,5.01361,1994.6,1994.4,1.12251335]
[1742645146800,6.1,1994.8,1994.4,1.12251335]
[1742645146801,11.11312,1994.8,1994.4,6.13646335]
[1742645147018,11.11312,1994.8,1994.5,0.61364634]
[1742645147222,5.01329,1994.7,1994.5,0.93327233]
[1742645147420,5.01329,1994.7,1994.5,0.31962599]
[1742645147627,5.01353,1994.6,1994.5,0.31962599]
[1742645148009,5.01336,1994.7,1994.5,0.31962599]
[1742645148233,16.12625,1994.8,1994.5,0.31962599]
[1742645148428,16.12621,1994.8,1994.5,0.31962599]
[1742645149332,5.01328,1994.7,1994.5,0.31962599]
[1742645149529,5.01328,1994.7,1994.5,0.93313259]
[1742645149746,5.01328,1994.7,1994.5,0.31962599]
[1742645150040,11.11305,1994.8,1994.5,0.31962599]
[1742645150197,5.01305,1994.8,1994.5,0.31962599]
[1742645150396,5.01279,1994.9,1994.5,5.33322599]
[1742645150607,3.7651,1995.0,1994.5,0.31962599]
[1742645150912,5.01319,1994.8,1994.5,0.31962599]
[1742645151232,5.01319,1994.8,1994.5,0.93313959]
[1742645152032,5.01329,1994.7,1994.5,0.93313959]
[1742645155264,5.01319,1994.8,1994.5,0.93313959]
[1742645156361,10.02641,1994.8,1994.5,0.93313959]
[1742645157126,5.01331,1994.7,1994.5,0.93313959]
[1742645159161,5.01331,1994.7,1994.5,0.31962599]
[1742645159528,10.02641,1994.8,1994.5,0.31962599]
[1742645159732,5.01319,1994.8,1994.5,0.31962599]
[1742645160335,10.02643,1994.8,1994.5,26.82662599]
[1742645160531,5.0133,1994.7,1994.5,26.82662599]
[1742645160764,5.0133,1994.7,1994.5,30.09083959]
[1742645162535,5.01353,1994.6,1994.5,26.82662599]
[1742645162735,5.01353,1994.6,1994.5,31.47962599]
[1742645169873,5.01353,1994.6,1994.5,4.97262599]
[1742645178651,5.01353,1994.6,1994.5,5.44230278]
[1742645180090,5.0129,1994.9,1994.5,6.73913306]
[1742645180286,5.01312,1994.8,1994.5,6.73913306]
[1742645181084,10.02633,1994.8,1994.5,6.73913306]
[1742645181381,10.02633,1994.8,1994.5,6.26945627]
[1742645181786,5.01331,1994.7,1994.5,6.26945627]
[1742645181986,10.02681,1994.7,1994.5,6.26945627]
[1742645182155,5.01331,1994.7,1994.5,6.26945627]
[1742645183691,5.01331,1994.7,1994.6,0.46971014]
[1742645183863,5.01331,1994.7,1994.6,0.78877841]
[1742645184271,5.78539,1995.1,1994.6,1.46263928]
[1742645184466,5.01219,1995.2,1994.8,5.01286]
[1742645184677,5.01219,1995.2,1995.0,0.7628]
[1742645185103,5.01178,1995.3,1995.0,0.7628]
[1742645185262,5.01178,1995.3,1995.0,1.804756]
[1742645185963,5.01178,1995.3,1995.1,0.31655699]
[1742645186167,5.02152,1995.4,1995.1,0.31655699]
[1742645186789,10.03325,1995.4,1995.1,0.31655699]
[1742645186962,5.02152,1995.4,1995.1,0.31655699]
[1742645187163,0.01,1995.4,1995.1,6.04206929]
[1742645187397,0.01,1995.4,1995.1,6.51074771]
[1742645188870,5.02156,1995.4,1995.1,1.49861771]
[1742645189872,5.02156,1995.4,1995.1,1.02993929]
[1742645190468,0.01,1995.4,1995.1,1.02993929]
[1742645190680,0.01,1995.4,1995.1,5.32863699]
[1742645191498,0.01,1995.4,1995.1,5.79731541]
[1742645192181,0.01,1995.4,1995.3,0.7628]
[1742645192381,0.01,1995.4,1995.3,5.4068]
[1742645192601,0.01,1995.4,1995.3,37.23351963]
[1742645192783,0.01,1995.4,1995.3,40.06152332]
[1742645199805,0.01,1995.4,1995.3,41.05304733]
[1742645202630,0.01,1995.4,1995.3,41.06654733]
[1742645204417,0.01,1995.4,1995.3,41.53323158]
[1742645205014,0.01,1995.4,1995.3,41.53023158]
[1742645205515,0.01,1995.4,1995.3,41.06354733]
[1742645207413,0.01,1995.4,1995.3,36.42254733]
[1742645207586,0.01,1995.4,1995.3,41.06354733]
[1742645209130,0.01,1995.4,1995.3,40.07202332]
[1742645210520,0.01,1995.4,1995.3,35.43102332]
[1742645210726,0.01,1995.4,1995.3,40.07202332]
[1742645212221,0.01,1995.4,1995.3,34.28395332]
[1742645212421,0.01,1995.4,1995.3,34.7518801]
[1742645214524,0.01,1995.4,1995.3,39.7636501]
[1742645214929,0.01,1995.4,1995.3,34.7518801]
[1742645218824,0.01,1995.4,1995.3,40.5478501]
[1742645222648,0.01,1995.4,1995.3,41.0978501]
[1742645239359,0.01,1995.4,1995.3,40.5478501]
[1742645240857,0.01,1995.4,1995.3,40.07992332]
[1742645242368,0.01,1995.4,1995.3,35.43892332]
[1742645242575,0.01,1995.4,1995.3,34.65472332]
[1742645242734,0.01,1995.4,1995.3,39.29472332]
[1742645244455,0.7814,1995.4,1995.3,34.65472332]
[1742645244669,0.7814,1995.4,1995.3,26.81494963]
[1742645244969,0.7814,1995.4,1995.3,31.45494963]
[1742645246487,0.7814,1995.4,1995.3,31.45594963]
[1742645247047,0.7814,1995.4,1995.3,26.81494963]
[1742645247241,0.7814,1995.4,1995.3,31.45594963]
[1742645251269,0.7814,1995.4,1995.3,36.46771963]
[1742645251466,0.7814,1995.4,1995.3,39.96958419]
[1742645252494,0.01,1995.4,1995.3,39.96958419]
[1742645266195,0.7855,1995.4,1995.3,31.45594963]
[1742645269622,0.7855,1995.4,1995.3,36.46771963]
[1742645272230,0.7855,1995.4,1995.3,31.45594963]
[1742645272998,0.01,1995.4,1995.3,36.46771963]
[1742645275039,0.01,1995.4,1995.3,37.26941963]
[1742645295431,0.01,1995.4,1995.3,37.81941963]
[1742645296231,0.01,1995.4,1995.3,40.81941963]
[1742645296858,0.01,1995.4,1995.3,43.81941963]
[1742645307348,0.01,1995.4,1995.3,43.81841963]
[1742645307543,0.01,1995.4,1995.3,39.17841963]
[1742645307763,0.01,1995.4,1995.3,43.81741963]
[1742645318491,0.01,1995.4,1995.3,34.82671963]
[1742645318694,0.01,1995.4,1995.3,36.46571963]
[1742645319593,0.8195,1995.4,1995.3,31.45394963]
[1742645320015,5.83102,1995.4,1995.3,31.45394963]
[1742645320172,6.414122,1995.4,1995.3,31.45394963]
[1742645322715,6.414122,1995.4,1995.3,31.45494963]
[1742645328532,1.402602,1995.4,1995.3,31.45494963]
[1742645328732,0.8195,1995.4,1995.3,31.45494963]
[1742645332933,5.83102,1995.4,1995.3,31.45494963]
[1742645334041,0.8195,1995.4,1995.3,31.45494963]
[1742645336643,5.83102,1995.4,1995.3,31.45494963]
[1742645338245,5.83102,1995.4,1995.3,4.95494963]
[1742645344853,0.8195,1995.4,1995.3,4.95494963]
[1742645345557,5.83102,1995.4,1995.3,4.95494963]
[1742645363821,6.915255,1995.4,1995.3,0.31494963]
[1742645363984,6.915255,1995.4,1995.3,4.95594963]
[1742645365791,6.105755,1995.4,1995.3,4.95594963]
[1742645365981,5.02152,1995.4,1995.3,4.95594963]
[1742645366181,0.01,1995.4,1995.3,4.95594963]
[1742645368679,0.01,1995.4,1995.3,9.96771963]
[1742645369017,0.01,1995.4,1995.3,4.95594963]
[1742645369179,0.01,1995.4,1995.3,9.96771963]
[1742645370986,0.01,1995.4,1995.3,4.95594963]
[1742645371210,0.01,1995.4,1995.3,9.96771963]
[1742645371913,0.01,1995.4,1995.3,10.74401963]
[1742645372601,0.01,1995.4,1995.3,10.42907]
[1742645372917,0.01,1995.4,1995.3,10.72785163]
[1742645373294,0.01,1995.4,1995.3,11.27785163]
[1742645373927,0.01,1995.4,1995.3,14.27785163]